bitfinex/quotes_ETHUSD_20240717
["timestamp","ask_amount","ask_price","bid_price","bid_amount"]
[1721220538352,2.88834,3462.2,3461.6,3.0]
[1721220538529,2.8885,3462.0,3461.3,2.88903]
[1721220540660,2.88873,3461.8,3460.8,2.88947]
[1721220540843,2.88873,3461.8,3460.8,2.88945]
[1721220541159,0.55,3461.7,3461.0,2.88929]
[1721220541348,2.88885,3461.6,3461.0,2.88929]
[1721220543021,0.55,3461.7,3461.0,2.88929]
[1721220543252,3.43877,3461.7,3461.0,2.88929]
[1721220543736,3.45525,3461.7,3461.0,2.88929]
[1721220543954,3.45525,3461.7,3461.1,0.6297955]
[1721220544560,0.01648,3461.7,3461.3,2.88906]
[1721220545457,0.01648,3461.7,3461.1,3.5189855]
[1721220545657,0.01648,3461.7,3460.9,0.519215]
[1721220545824,2.90528,3461.7,3461.1,2.88923]
[1721220546318,0.01648,3461.7,3461.3,2.88905]
[1721220546526,0.01648,3461.7,3461.4,2.4833]
[1721220546844,0.01648,3461.7,3461.6,5.77766]
[1721220551139,0.01648,3461.7,3461.6,11.71149]
[1721220551364,0.01648,3461.7,3461.6,13.835874]
[1721220551928,0.01648,3461.7,3461.6,10.947044]
[1721220553239,0.01648,3461.7,3461.6,7.902044]
[1721220556878,0.01648,3461.7,3461.6,5.77766]
[1721220557077,0.01648,3461.7,3461.4,2.889]
[1721220558384,0.01648,3461.7,3461.4,5.77794]
[1721220558587,0.01648,3461.7,3461.6,2.88883]
[1721220558774,0.01648,3461.7,3461.6,5.77766]
[1721220558972,0.01648,3461.7,3461.6,6.829926]
[1721220566047,0.01648,3461.7,3461.6,3.941096]
[1721220566253,0.01648,3461.7,3461.6,2.88883]
[1721220569815,0.01648,3461.7,3461.6,5.77766]
[1721220570295,0.01648,3461.7,3461.6,2.88883]
[1721220570610,0.01648,3461.7,3461.3,4.745]
[1721220570611,0.01648,3461.7,3461.4,2.889]
[1721220570778,0.01648,3461.7,3461.5,2.88891]
[1721220571474,0.01648,3461.7,3461.3,4.589]
[1721220571682,0.01648,3461.7,3461.3,2.88908]
[1721220573527,0.01648,3461.7,3460.9,1.7]
[1721220573528,2.88884,3461.6,3460.9,2.88935]
[1721220573717,2.88884,3461.6,3460.9,5.7787]
[1721220573913,2.88884,3461.6,3460.9,2.88935]
[1721220574095,3.79882938,3461.6,3460.9,2.88935]
[1721220574921,3.79882938,3461.6,3461.0,2.88932]
[1721220575303,2.88884,3461.6,3461.0,2.88932]
[1721220576496,2.88884,3461.6,3460.8,2.88949]
[1721220576497,2.88884,3461.6,3460.9,2.88942]
[1721220577206,2.88884,3461.6,3461.0,2.88933]
[1721220577401,2.88884,3461.6,3461.0,3.467205]
[1721220577596,0.01648,3461.7,3461.1,2.3546]
[1721220577895,0.01648,3461.7,3461.0,0.577875]
[1721220577896,0.01648,3461.7,3461.2,2.8891]
[1721220578312,0.01648,3461.7,3461.3,2.88902]
[1721220578805,0.01648,3461.7,3461.4,2.889]
[1721220581043,0.01648,3461.7,3461.4,3.63681]
[1721220582098,0.01648,3461.7,3461.6,2.88883]
[1721220583614,0.01648,3461.7,3461.4,6.52576]
[1721220583939,0.01648,3461.7,3461.4,3.63676]
[1721220584139,0.01648,3461.7,3461.5,2.88891]
[1721220586742,0.01648,3461.7,3461.3,2.88902]
[1721220587044,2.262,3461.6,3461.1,2.88921]
[1721220588515,2.262,3461.6,3461.0,0.577875]
[1721220588844,2.262,3461.6,3460.5,3.0]
[1721220589144,3.17198938,3461.6,3460.5,7.0]
[1721220589652,4.20694574,3461.5,3460.7,2.88953]
[1721220589833,3.79891938,3461.5,3460.7,5.77904]
[1721220590048,3.79891938,3461.5,3460.8,6.8895]
[1721220591149,2.88902,3461.4,3460.8,4.0]
[1721220591322,3.57419342,3461.3,3460.4,2.88979]
[1721220591521,3.57419342,3461.3,3460.1,0.10709837]
[1721220591522,1.31811737,3461.2,3460.1,0.10709837]
[1721220591721,2.2561,3460.6,3459.8,2.89028]
[1721220591951,2.2561,3460.6,3459.7,2.89039]
[1721220591952,5.14585,3460.6,3459.7,2.89039]
[1721220592264,5.14585,3460.6,3459.4,2.4831]
[1721220592265,2.88977,3460.5,3459.6,2.8905]
[1721220592610,2.88977,3460.5,3459.4,2.89065]
[1721220592611,2.88987,3460.4,3459.4,2.89065]
[1721220592940,2.88993,3460.3,3459.5,2.89056]
[1721220593313,2.88993,3460.3,3459.6,2.8905]
[1721220593566,2.2561,3460.1,3459.1,2.89086]
[1721220593853,2.89026,3459.9,3459.2,2.89083]
[1721220594237,2.89037,3459.8,3459.3,4.0]
[1721220594435,2.89043,3459.7,3459.3,4.0]
[1721220594637,2.89026,3459.9,3458.6,2.4831]
[1721220594638,2.89067,3459.4,3458.6,2.89128]
[1721220594882,2.89067,3459.4,3458.5,2.89135]
[1721220595015,2.89067,3459.4,3458.7,2.89125]
[1721220595218,2.89061,3459.5,3458.7,2.89125]
[1721220595716,2.2561,3459.6,3458.8,2.89117]
[1721220595919,2.2561,3459.6,3459.0,2.891]
[1721220597658,5.14661,3459.6,3458.8,2.89117]
[1721220597967,2.89069,3459.4,3458.6,2.89133]
[1721220598161,5.14661,3459.6,3458.6,2.89133]
[1721220598162,2.89076,3459.3,3458.6,2.89133]
[1721220598658,1.79128917,3460.2,3458.2,2.89161]
[1721220598659,2.4474,3459.1,3458.2,2.89161]
[1721220598837,2.89101,3459.0,3458.3,6.89159]
[1721220599248,2.89101,3459.0,3458.3,2.89159]
[1721220599435,2.89113,3458.9,3458.1,2.89173]
[1721220599623,2.89113,3458.9,3458.2,2.89165]
[1721220600026,5.33837,3459.1,3458.2,2.89165]
[1721220600225,5.33837,3459.1,3458.3,3.769928]
[1721220600226,2.4474,3459.1,3458.3,3.769928]
[1721220600421,5.33838,3459.1,3458.3,3.769928]
[1721220600644,2.89102,3459.0,3458.3,3.769928]
[1721220601106,2.89112,3458.9,3458.3,0.878338]
[1721220601222,2.89112,3458.9,3458.2,2.89166]
[1721220601600,2.89114,3458.9,3458.2,2.89166]
[1721220602425,2.89126,3458.7,3458.0,2.89183]
[1721220602629,2.89134,3458.6,3457.8,2.89199]
[1721220602877,2.89142,3458.5,3457.8,2.89199]
[1721220603056,2.3947,3458.4,3457.8,2.89199]
[1721220603367,2.89131,3458.7,3458.0,2.89183]
[1721220603563,2.3947,3459.0,3458.3,2.89159]
[1721220603925,2.3947,3459.0,3457.8,3.49394033]
[1721220603926,2.89115,3458.9,3458.2,2.89167]
[1721220604126,5.28576,3459.0,3458.2,2.89167]
[1721220604856,5.28578,3459.0,3458.2,2.89167]
[1721220605060,2.3947,3459.0,3458.3,2.89158]
[1721220605445,5.28571,3459.0,3458.3,2.89158]
[1721220606782,5.28571,3459.0,3458.1,2.89175]
[1721220606783,2.89109,3458.9,3458.1,2.89175]
[1721220607274,2.89109,3458.9,3458.2,2.89164]
[1721220607482,2.89132,3458.7,3457.7,2.89209]
[1721220607640,2.89132,3458.7,3457.2,1.7]
[1721220607641,2.3119,3458.6,3457.2,1.7]
[1721220607966,2.89151,3458.4,3457.6,2.89215]
[1721220608282,2.89171,3458.2,3457.6,2.89217]
[1721220608845,2.89159,3458.3,3457.6,2.89217]
[1721220609482,2.89167,3458.2,3457.6,2.89217]
[1721220610497,2.89178,3458.1,3457.4,2.89226]
[1721220610642,2.89178,3458.1,3457.3,2.89238]
[1721220610643,5.36778,3458.1,3457.3,2.89238]
[1721220610847,2.89186,3458.0,3457.3,2.89238]
[1721220611139,2.89186,3458.0,3457.4,2.89234]
[1721220611882,2.476,3458.1,3457.4,2.89234]
[1721220612180,2.476,3458.1,3457.4,3.470824]
[1721220612403,2.476,3458.1,3457.6,2.89216]
[1721220612944,2.476,3458.1,3457.6,5.78428]
[1721220613198,2.476,3458.1,3457.6,2.89212]
[1721220613542,2.476,3458.1,3457.7,2.89209]
[1721220614256,2.4974,3458.5,3457.8,2.89201]
[1721220614459,2.4974,3458.5,3458.0,2.89183]
[1721220614859,2.4974,3458.5,3457.9,2.89188]
[1721220615611,2.4974,3458.5,3458.0,2.89182]
[1721220616520,2.4974,3458.5,3457.8,2.89194]
[1721220616686,3.325402,3458.5,3457.9,2.89192]
[1721220617016,2.4974,3458.5,3458.0,2.89184]
[1721220617570,2.4616,3458.9,3458.3,2.89154]
[1721220617771,2.4616,3458.9,3458.0,1.7]
[1721220617971,2.4616,3459.8,3459.0,2.89098]
[1721220618475,2.4616,3459.8,3459.2,2.89083]
[1721220619821,5.35195,3459.8,3459.0,2.89098]
[1721220619978,6.176146,3459.8,3459.0,2.89098]
[1721220620177,6.176146,3459.8,3459.1,2.89092]
[1721220620414,2.89042,3459.7,3458.8,2.89114]
[1721220620614,2.89062,3459.5,3458.8,2.89114]
[1721220620920,3.7973036,3459.5,3458.6,2.89127]
[1721220621126,2.89081,3459.3,3458.6,2.89127]
[1721220621572,3.7973036,3459.5,3458.8,2.89113]
[1721220621573,2.89062,3459.5,3458.8,2.89113]
[1721220621778,2.89044,3459.7,3458.9,2.89108]
[1721220621779,2.89051,3459.6,3458.9,2.89108]
[1721220622713,5.35201,3459.8,3459.0,2.891]
[1721220622883,3.44042,3459.7,3459.0,2.891]
[1721220623300,2.89018,3460.0,3459.2,2.89083]
[1721220623611,2.89018,3460.0,3459.0,0.578213]
[1721220623612,2.3821,3460.2,3459.5,2.89058]
[1721220623856,2.88984,3460.4,3459.7,2.89037]
[1721220624212,5.2718,3460.6,3459.8,2.89032]
[1721220624462,0.816132,3460.5,3459.8,2.89032]
[1721220624623,0.816132,3460.5,3459.9,2.89024]
[1721220624957,0.816132,3460.5,3459.3,3.045]
[1721220624958,3.705892,3460.5,3459.7,2.89035]
[1721220625254,3.705892,3460.5,3459.6,2.89047]
[1721220625414,3.705892,3460.5,3459.8,2.89028]
[1721220626440,2.88976,3460.5,3459.9,2.89024]
[1721220627787,2.3821,3460.6,3460.0,0.05780059]
[1721220628067,2.3821,3460.6,3459.6,5.14453]
[1721220628068,2.3313,3461.0,3460.3,2.8899]
[1721220628233,2.3313,3461.0,3460.2,2.88999]
[1721220628433,2.3313,3461.0,3460.2,3.424989]
[1721220628633,2.88912,3461.3,3460.4,2.88978]
[1721220628855,2.88926,3461.1,3460.4,2.88978]
[1721220629926,2.88934,3461.0,3460.4,2.88978]
[1721220630632,2.88934,3461.0,3460.2,3.424939]
[1721220630892,3.467191,3461.0,3460.2,2.88994]
[1721220631168,3.467191,3461.0,3460.3,2.88989]
[1721220631758,0.05781849,3460.9,3460.3,2.88989]
[1721220632463,2.2602,3460.8,3459.7,2.89036]
[1721220632663,2.2602,3460.8,3459.5,3.045]
[1721220632664,2.88976,3460.5,3459.8,6.89034]
[1721220632868,2.88983,3460.4,3459.7,2.89041]
[1721220633071,2.94420066,3460.4,3459.7,2.89041]
[1721220633391,2.88992,3460.3,3459.5,2.89052]
[1721220633594,2.94453017,3460.3,3459.7,2.89041]
[1721220634381,0.05461017,3460.3,3459.7,2.89041]
[1721220634583,2.88982,3460.5,3459.7,2.89041]
[1721220634789,0.05742027,3460.2,3459.7,2.89041]
[1721220634945,2.88982,3460.5,3459.7,2.89041]
[1721220635147,0.00260541,3460.1,3459.7,2.89041]
[1721220635345,2.88982,3460.5,3459.7,2.89041]
[1721220635663,2.2602,3460.8,3459.9,2.89025]
[1721220635664,0.00247142,3460.0,3459.9,2.89025]
[1721220635981,5.14972,3460.8,3460.2,2.88999]
[1721220637076,2.88934,3461.0,3460.2,2.88999]
[1721220637278,2.2597,3461.2,3460.4,2.88983]
[1721220637279,5.14892,3461.2,3460.4,2.88983]
[1721220637464,3.43926,3461.1,3460.4,2.88983]
[1721220638407,2.88933,3461.0,3460.2,2.88999]
[1721220638611,2.88933,3461.0,3460.3,2.88992]
[1721220638961,2.8930295,3460.9,3460.2,2.88998]
[1721220639185,2.8930295,3460.9,3460.3,2.88991]
[1721220640290,0.0036095,3460.9,3460.4,2.88982]
[1721220640511,3.43926,3461.1,3460.4,2.88982]
[1721220640865,0.00347556,3460.8,3460.4,2.88982]
[1721220641105,0.00334162,3460.7,3460.4,2.88982]
[1721220641399,3.43926,3461.1,3460.4,2.88982]
[1721220641700,0.05436799,3460.6,3460.4,2.88982]
[1721220641921,3.459286,3461.0,3460.2,2.88994]
[1721220641922,2.88939,3461.0,3460.2,2.88994]
[1721220642127,0.05753062,3460.5,3459.8,2.89027]
[1721220642411,2.88966,3460.7,3459.8,6.89027]
[1721220642609,2.88958,3460.8,3460.0,2.89015]
[1721220642768,2.94738103,3460.6,3460.0,2.89015]
[1721220642962,2.88968,3460.6,3460.0,2.89015]
[1721220643465,5.77942,3460.6,3459.8,6.89027]
[1721220643707,2.3974,3460.5,3459.8,4.0]
[1721220643905,2.45484384,3460.5,3459.8,4.0]
[1721220644091,2.88996,3460.3,3459.8,4.0]
[1721220645912,2.89,3460.2,3459.7,7.44]
[1721220646292,2.8927076,3460.2,3459.6,2.89049]
[1721220647335,2.8927076,3460.2,3459.6,3.710503]
[1721220647836,0.05479685,3460.1,3459.6,3.710503]
[1721220648640,0.05479685,3460.1,3459.6,3.710473]
[1721220648806,0.05479685,3460.1,3459.6,0.820013]
[1721220649349,0.05479685,3460.1,3459.5,2.89051]
[1721220649560,2.3593,3460.0,3459.6,4.0]
[1721220649714,2.89034,3459.8,3459.6,4.0]
[1721220649912,2.89059,3459.5,3458.8,5.89113]
[1721220650107,2.89059,3459.5,3458.8,7.513373]
[1721220650652,2.89059,3459.5,3459.0,4.0]
[1721220651348,2.89059,3459.5,3458.8,2.89113]
[1721220651509,2.89059,3459.5,3458.8,5.78225]
[1721220651853,5.78125,3459.5,3458.8,2.89112]
[1721220652750,5.78125,3459.5,3458.6,10.33131]
[1721220652751,2.89085,3459.2,3458.6,7.44]
[1721220652911,5.78216,3459.0,3458.7,4.0]
[1721220653250,2.89108,3459.0,3458.7,4.0]
[1721220653553,0.00168106,3458.9,3458.7,4.0]
[1721220653913,0.00168106,3458.9,3458.7,4.4]
[1721220654151,2.4178,3459.9,3458.7,7.29119]
[1721220654317,2.89066,3459.5,3458.8,2.89116]
[1721220654855,2.89067,3459.4,3458.8,2.89116]
[1721220655627,2.89067,3459.4,3458.7,0.4]
[1721220655955,2.89067,3459.4,3458.7,2.89123]
[1721220656158,2.89077,3459.3,3458.5,2.89138]
[1721220656377,2.89118,3458.8,3458.6,4.0]
[1721220656660,2.89125,3458.7,3458.6,4.0]
[1721220656812,8.0638,3458.7,3458.6,4.0]
[1721220657018,9.42123505,3458.7,3458.6,4.0]
[1721220657341,2.89159,3458.3,3458.2,4.0]
[1721220657866,2.89175,3458.2,3457.5,2.89226]
[1721220658166,3.44246667,3458.3,3457.5,2.89226]
[1721220658167,2.89148,3458.5,3457.7,2.89204]
[1721220658332,2.89148,3458.5,3457.8,4.0]
[1721220658333,2.89156,3458.4,3457.8,4.0]
[1721220658519,2.8916,3458.3,3457.8,4.0]
[1721220658714,2.8917,3458.2,3457.8,4.0]
[1721220658925,2.89182,3458.1,3457.8,4.0]
[1721220659124,2.89184,3458.0,3457.8,4.0]
[1721220659824,2.89162,3458.3,3457.4,2.89232]
[1721220659825,2.89173,3458.2,3457.4,2.89232]
[1721220660024,2.89173,3458.2,3457.5,0.578473]
[1721220660271,2.89155,3458.4,3457.7,2.89209]
[1721220661140,2.89136,3458.6,3457.8,2.892]
[1721220661524,2.89151,3458.4,3457.8,2.892]
[1721220662171,2.2813,3458.7,3457.8,2.892]
[1721220662422,2.2813,3458.7,3457.9,0.2892]
[1721220662578,0.00084935,3458.6,3458.0,2.89183]
[1721220662780,0.05376263,3458.6,3458.0,2.89183]
[1721220662978,2.89117,3458.8,3458.0,2.89183]
[1721220663406,0.00098345,3458.7,3458.0,2.89183]
[1721220663682,2.89228345,3458.7,3458.0,3.499133]
[1721220664480,0.00098345,3458.7,3458.2,2.89167]
[1721220664907,0.55,3459.0,3458.2,2.89167]
[1721220665110,0.55,3459.0,3458.3,2.89157]
[1721220665639,0.00125161,3458.9,3458.3,2.89157]
[1721220665793,0.00125161,3458.9,3458.4,0.578324]
[1721220666243,2.2813,3459.1,3458.4,3.469774]
[1721220666606,5.1723,3459.1,3458.4,3.469774]
[1721220666797,5.78161,3459.3,3458.4,3.469774]
[1721220667125,0.55,3459.2,3458.4,3.469774]
[1721220667304,3.44170632,3459.2,3458.5,0.6361444]
[1721220667495,3.44084,3459.2,3458.5,0.6361444]
[1721220667926,2.89061,3459.5,3458.5,0.6361444]
[1721220668136,2.89061,3459.5,3458.8,2.89112]
[1721220668137,0.00151967,3459.1,3458.8,2.89112]
[1721220668294,2.89062,3459.5,3458.8,2.89112]
[1721220668491,0.00206493,3459.4,3458.8,2.89112]
[1721220668725,0.00206493,3459.4,3458.8,5.78223]
[1721220668935,0.00206493,3459.4,3458.9,3.469253]
[1721220669234,2.89017,3460.0,3459.2,2.89078]
[1721220669597,2.89017,3460.0,3459.3,2.89075]
[1721220670205,2.89027,3459.9,3459.3,2.89075]
[1721220670815,2.89034,3459.8,3459.1,2.89086]
[1721220671040,2.89034,3459.8,3459.1,3.2377683]
[1721220671636,5.22842,3460.1,3458.9,3.469303]
[1721220671637,2.89052,3459.6,3458.9,3.469303]
[1721220671836,2.3383,3460.1,3458.9,3.469303]
[1721220671837,2.89049,3459.7,3458.9,2.89107]
[1721220672134,0.00148328,3459.5,3458.9,2.89107]
[1721220672294,0.00147026,3459.6,3458.9,2.89107]
[1721220672500,2.89197026,3459.6,3458.9,2.89107]
[1721220672699,2.89197026,3459.6,3459.0,1.322216]
[1721220673343,2.89061,3459.5,3458.9,2.89107]
[1721220673833,2.89061,3459.5,3458.7,10.33125]
[1721220673834,0.00141171,3459.5,3459.1,2.89087]
[1721220674006,2.89032,3459.9,3459.2,2.89078]
[1721220674206,3.4402,3460.0,3459.2,2.89078]
[1721220674207,0.05167173,3459.4,3459.2,2.89078]
[1721220674407,3.4402,3460.0,3459.2,2.89078]
[1721220674408,2.89034,3459.8,3459.2,3.179858]
[1721220674627,0.05180865,3459.3,3459.2,2.89078]
[1721220675122,2.89034,3459.8,3459.2,2.89078]
[1721220675323,0.05145832,3459.7,3459.2,2.89078]
[1721220677341,0.05154589,3459.6,3459.2,2.89078]
[1721220677642,2.89026,3459.9,3459.2,2.89078]
[1721220677943,2.89034,3459.8,3459.2,2.89078]
[1721220678100,0.05111917,3459.8,3459.2,2.89078]
[1721220678305,0.05111917,3459.8,3459.2,6.359715]
[1721220678505,3.4402,3460.0,3459.2,6.359715]
[1721220679012,0.05103161,3459.9,3459.2,6.359715]
[1721220679205,0.05103161,3459.9,3459.2,10.359715]
[1721220679405,0.05103161,3459.9,3459.3,2.89073]
[1721220681446,0.92298877,3459.9,3459.3,2.89073]
[1721220681661,0.05103161,3459.9,3459.3,2.89073]
[1721220682074,0.05103161,3459.9,3459.5,2.89054]
[1721220682236,0.05103161,3459.9,3459.6,2.89046]
[1721220682565,2.478,3460.5,3459.8,2.89032]
[1721220682930,5.36775,3460.5,3459.8,2.89032]
[1721220683571,5.36775,3460.5,3459.6,5.78089]
[1721220683775,2.88985,3460.4,3459.2,6.3891]
[1721220683931,2.89005,3460.2,3459.4,6.89061]
[1721220684706,2.8901,3460.1,3459.4,6.89061]
[1721220684849,2.89005,3460.2,3459.4,4.0]
[1721220684850,3.523205,3460.0,3459.4,4.0]
[1721220685158,5.21876,3459.9,3459.4,4.0]
[1721220685360,2.89042,3459.7,3459.4,4.0]
[1721220686190,2.89042,3459.7,3459.0,2.89095]
[1721220686690,5.78092,3459.7,3459.0,2.89095]
[1721220686873,2.89052,3459.6,3458.8,2.89115]
[1721220687205,2.89059,3459.5,3458.7,7.44]
[1721220687352,2.89059,3459.5,3458.8,2.89116]
[1721220687550,2.89059,3459.5,3458.9,4.0]
[1721220687806,2.89059,3459.5,3458.8,2.89116]
[1721220687807,2.89059,3459.5,3458.8,2.89111]
[1721220688882,3.701362,3459.7,3458.9,2.89108]
[1721220689085,2.89042,3459.7,3458.9,2.89108]
[1721220689292,0.90998938,3459.9,3458.8,2.21252521]
[1721220689458,2.89019,3460.0,3459.2,5.78153]
[1721220689663,0.90998938,3460.2,3459.3,2.89074]
[1721220689958,3.44013,3460.1,3459.3,2.89074]
[1721220690705,2.89017,3460.0,3459.3,2.89074]
[1721220692521,0.90998938,3460.3,3459.7,2.89041]
[1721220692721,0.05103092,3459.9,3459.7,2.89041]
[1721220692911,2.88984,3460.4,3459.7,2.89041]
[1721220693117,0.04931779,3459.8,3459.7,2.89041]
[1721220693291,2.88984,3460.4,3459.7,3.46851]
[1721220693488,0.04931779,3459.8,3459.7,2.89041]
[1721220693728,2.88984,3460.4,3459.7,2.89041]
[1721220693892,0.04931779,3459.8,3459.7,2.89041]
[1721220694419,2.88984,3460.4,3459.7,2.89041]
[1721220694719,0.04931779,3459.8,3459.7,2.89041]
[1721220694925,2.88992,3460.3,3459.7,2.89041]
[1721220695091,0.04931779,3459.8,3459.7,2.89041]
[1721220695309,2.88992,3460.3,3459.4,2.89059]
[1721220695611,2.88992,3460.3,3459.5,4.0]
[1721220695788,0.04887155,3460.2,3459.5,4.0]
[1721220696585,2.93887155,3460.2,3459.6,2.8905]
[1721220696787,2.93887155,3460.2,3459.5,4.0]
[1721220696788,2.89016,3460.1,3459.5,4.0]
[1721220697102,2.93888535,3460.1,3459.3,5.78139]
[1721220697298,0.04872535,3460.1,3459.4,6.89062]
[1721220697536,0.0029047,3460.0,3459.5,2.89058]
[1721220697693,0.0029047,3460.0,3459.5,4.612706]
[1721220699255,0.0029047,3460.0,3459.7,2.89041]
[1721220702561,0.00184052,3460.0,3459.8,2.89032]
[1721220707537,0.04915921,3459.9,3459.8,2.89032]
[1721220708635,0.90998938,3460.5,3459.8,2.89032]
[1721220708835,1.92633624,3460.5,3459.8,2.89032]
[1721220709074,0.90998938,3460.5,3460.0,2.89015]
[1721220709341,0.90998938,3460.9,3460.3,2.88991]
[1721220710152,3.79932938,3461.0,3460.3,2.88991]
[1721220710543,0.90998938,3460.9,3460.3,2.88991]
[1721220711690,0.90998938,3460.8,3460.3,2.88991]
[1721220711899,0.90998938,3460.9,3460.3,2.88991]
[1721220712299,0.90998938,3460.9,3460.4,2.88982]
[1721220712455,0.90998938,3461.0,3460.4,0.577977]
[1721220712655,0.90998938,3461.2,3461.0,2.88927]
[1721220712888,1.5135812,3461.5,3461.1,2.88924]
[1721220712889,0.90998938,3461.3,3461.1,2.88924]
[1721220713088,1.5135812,3461.6,3461.1,2.88924]
[1721220713089,0.90998938,3461.6,3461.1,2.88924]
[1721220713389,0.90998938,3461.6,3461.2,2.88916]
[1721220713696,0.01648,3461.7,3461.5,2.8889]
[1721220714782,0.01648,3461.7,3461.3,2.88901]
[1721220715306,0.01648,3461.7,3461.4,2.88895]
[1721220716803,0.01648,3461.7,3461.5,2.88891]
[1721220717018,0.01648,3461.7,3461.5,3.9244803]
[1721220718292,0.01648,3461.7,3461.6,2.88883]
[1721220718710,0.01648,3461.7,3461.5,1.0355703]
[1721220719011,0.01648,3461.7,3461.5,3.9244603]
[1721220720384,0.01648,3461.7,3461.6,2.88883]
[1721220720614,0.01648,3461.7,3461.6,3.97015903]
[1721220721004,0.01648,3461.7,3461.6,9.38655507]
[1721220721200,0.01648,3461.7,3461.6,9.32878903]
[1721220721386,0.01648,3461.7,3461.6,15.26261903]
[1721220721889,0.01648,3461.7,3461.6,18.26261903]
[1721220722503,0.01648,3461.7,3461.6,22.26261903]
[1721220723817,0.01648,3461.7,3461.6,19.37378903]
[1721220724616,0.01648,3461.7,3461.6,21.07378903]
[1721220725183,0.01648,3461.7,3461.6,13.85898903]
[1721220725378,0.01648,3461.7,3461.6,15.55898903]
[1721220727112,0.01648,3461.7,3461.6,18.60398903]
[1721220727311,0.01648,3461.7,3461.6,21.49281903]
[1721220728828,0.01648,3461.7,3461.6,18.60398903]
[1721220730112,0.01648,3461.7,3461.6,15.55898903]
[1721220733024,0.01648,3461.7,3461.6,13.85898903]
[1721220733380,0.01648,3461.7,3461.6,4.0]
[1721220733793,2.90523,3461.7,3461.6,4.0]
[1721220733982,2.94959738,3461.7,3461.6,4.0]
[1721220734184,0.06084738,3461.7,3461.6,4.0]
[1721220734379,0.06084738,3461.7,3461.1,2.88923]
[1721220734619,0.01648,3461.7,3461.3,4.0]
[1721220734825,0.0442264,3461.6,3461.3,4.0]
[1721220736408,0.0442264,3461.6,3461.4,2.88895]
[1721220736615,0.0442264,3461.6,3461.5,2.88892]
[1721220736853,0.01648,3461.7,3461.6,2.88883]
[1721220738320,0.01648,3461.7,3461.5,2.88888]
[1721220738624,0.01648,3461.7,3461.6,2.88883]
[1721220739445,0.01648,3461.7,3461.4,2.88893]
[1721220739656,0.06068575,3461.7,3461.5,2.88891]
[1721220739832,0.06068575,3461.7,3461.2,2.88911]
[1721220740043,0.06068575,3461.7,3461.3,4.0]
[1721220740044,0.01648,3461.7,3461.3,4.0]
[1721220740261,0.04415935,3461.6,3461.3,4.0]
[1721220741549,0.04415935,3461.6,3461.2,5.77819]
[1721220741768,0.04415935,3461.6,3461.3,3.177981]
[1721220742065,0.01648,3461.7,3461.3,3.177981]
[1721220742270,0.04415935,3461.6,3461.3,3.177981]
[1721220742435,0.04415935,3461.6,3461.4,2.889]
[1721220742636,0.04415935,3461.6,3461.4,3.4956991]
[1721220743468,0.04415935,3461.6,3461.4,0.6066991]
[1721220743672,0.04415935,3461.6,3461.2,2.88908]
[1721220744081,0.04415935,3461.6,3461.2,5.77818]
[1721220744485,2.4797,3461.5,3460.9,7.44]
[1721220744660,2.4797,3461.5,3461.0,4.0]
[1721220745139,5.36864,3461.5,3461.0,4.0]
[1721220745543,0.04412072,3461.4,3461.0,4.0]
[1721220745783,0.04412072,3461.4,3460.9,10.32941]
[1721220746080,2.4797,3461.5,3460.9,12.889299]
[1721220746287,0.04412072,3461.4,3460.9,12.889299]
[1721220746453,0.04412072,3461.4,3461.2,2.88912]
[1721220746649,0.01648,3461.7,3460.9,15.504889]
[1721220746872,0.01648,3461.7,3461.4,2.88894]
[1721220747188,0.04412764,3461.6,3461.5,3.347724]
[1721220747574,0.01648,3461.7,3461.6,2.88883]
[1721220748599,0.06057784,3461.7,3461.6,2.88883]
[1721220748798,0.01648,3461.7,3461.6,2.88883]
[1721220748960,0.06057784,3461.7,3461.6,2.88883]
[1721220749160,0.01648,3461.7,3461.6,3.5124964]
[1721220749381,0.06057784,3461.7,3461.6,3.5124964]
[1721220749583,0.01648,3461.7,3461.6,6.4013264]
[1721220749904,0.01648,3461.7,3461.6,8.1013264]
[1721220750206,0.01648,3461.7,3461.6,10.9901564]
[1721220750513,0.01648,3461.7,3461.6,14.9901564]
[1721220750810,0.01648,3461.7,3461.6,17.4384564]
[1721220751603,0.01648,3461.7,3461.6,10.4013264]
[1721220752336,0.01648,3461.7,3461.6,7.5124964]
[1721220752844,0.01648,3461.7,3461.1,2.88917]
[1721220753141,0.01648,3461.7,3461.2,2.88914]
[1721220753142,0.04441768,3461.6,3461.2,2.88914]
[1721220754917,0.04441768,3461.6,3461.0,2.88927]
[1721220755117,0.04441768,3461.6,3461.1,2.8892]
[1721220755337,0.04441768,3461.6,3461.2,2.88914]
[1721220757737,0.04441768,3461.6,3461.3,2.88908]
[1721220758107,0.04441768,3461.6,3461.3,3.466915]
[1721220758307,0.04441768,3461.6,3461.3,2.88908]
[1721220758643,0.01648,3461.7,3461.4,1.7]
[1721220758801,0.01648,3461.7,3461.6,5.77766]
[1721220761022,0.01648,3461.7,3461.6,9.77766]
[1721220761634,0.01648,3461.7,3461.6,4.0]
[1721220761861,0.01648,3461.7,3461.6,6.88883]
[1721220762067,0.01648,3461.7,3461.6,2.88883]
[1721220762663,0.01648,3461.7,3461.5,2.8889]
[1721220762855,2.2523,3461.6,3461.4,1.7]
[1721220763068,0.0415902,3461.5,3461.4,1.7]
[1721220764268,0.01648,3461.7,3461.4,1.7]
[1721220764630,0.04165126,3461.6,3461.4,1.7]
[1721220765131,0.04165126,3461.6,3461.5,2.88892]